lending/lending_fUSD_20260119
["ID","MTS","AMOUNT","RATE_DAILY","PERIOD"]
[402708719,1768813669481,500.0,0.00015413,2]
[402708725,1768813831418,-393.19810388,0.00015735,2]
[402708726,1768813831430,-525.8355086,0.00015735,2]
[402708727,1768813831440,-380.9804914,0.0001574,2]
[402708728,1768813831487,-1659.29573135,0.0001574,2]
[402708729,1768813831497,-1280.1591,0.00015773,2]
[402708730,1768813831507,-1654.8366835,0.00015776,2]
[402708731,1768813831517,-300.0,0.00015788,2]
[402708732,1768813831527,-1200.0,0.00015789,2]
[402708733,1768813831537,-1779.91711524,0.0001579,2]
[402708734,1768813831547,-300.0,0.0001579,2]
[402708735,1768813831555,-151.0,0.00015791,2]
[402708736,1768813831565,-151.0,0.00015791,2]
[402708737,1768813831575,-151.0,0.00015791,2]
[402708738,1768813831585,-210.53435129,0.00015791,2]
[402708739,1768813831595,-151.0,0.00015791,2]
[402708740,1768813831605,-505.51863312,0.00015791,2]
[402708741,1768813831615,-151.0,0.00015791,2]
[402708742,1768813831625,-151.0,0.00015791,2]
[402708743,1768813831634,-151.0,0.00015791,2]
[402708744,1768813831644,-151.0,0.00015791,2]
[402708745,1768813831659,-151.0,0.00015791,2]
[402708746,1768813831669,-151.0,0.00015791,2]
[402708747,1768813831679,-151.0,0.00015791,2]
[402708748,1768813831689,-151.0,0.00015791,2]
[402708749,1768813831699,-151.0,0.00015791,2]
[402708750,1768813831709,-151.0,0.00015791,2]
[402708751,1768813831719,-284.40432592,0.00015791,2]
[402708752,1768813831730,-236.23666444,0.00015791,2]
[402708753,1768813831741,-200.0,0.00015791,2]
[402708754,1768813831751,-24325.43709723,0.00015876,2]
[402708755,1768813831760,-1654.8366834,0.00015888,2]
[402708756,1768813831770,-250.0,0.00015899,2]
[402708757,1768813831780,-1000.0,0.00015935,2]
[402708758,1768813831790,-919.03361248,0.00015976,2]
[402708760,1768813831799,-1654.8366834,0.00016,2]
[402708762,1768813831808,-1654.8366834,0.00016111,2]
[402708764,1768813831818,-905.21882691,0.0001617,2]
[402708766,1768813831827,-150.0,0.000162,2]
[402708768,1768813831838,-150.0,0.000162,2]
[402708770,1768813831848,-150.0,0.000162,2]
[402708772,1768813831858,-150.0,0.000162,2]
[402708774,1768813831867,-150.0,0.000162,2]
[402708776,1768813831876,-150.0,0.000162,2]
[402708778,1768813831886,-150.0,0.000162,2]
[402708780,1768813831895,-150.0,0.000162,2]
[402708782,1768813831905,-919.03361248,0.00016216,2]
[402708784,1768813831915,-1654.8366834,0.00016223,2]
[402708786,1768813831924,-6301.1033395,0.00016269,2]
[402708787,1768813831934,-1654.8366834,0.00016335,2]
[402708789,1768813831944,-200.0,0.00016408,2]
[402708791,1768813831953,-500.0,0.00016443,2]
[402708793,1768813831962,-1654.8366834,0.00016447,2]
[402708794,1768813831971,-919.03361248,0.00016457,2]
[402708796,1768813831981,-151.0,0.00016498,2]
[402708797,1768813831991,-151.0,0.00016499,2]
[402708798,1768813832001,-1088.9,0.000165,2]
[402708799,1768813832015,-151.0,0.00016504,2]
[402708800,1768813832024,-151.0,0.00016504,2]
[402708801,1768813832033,-151.0,0.0001651,2]
[402708802,1768813832043,-151.0,0.0001651,2]
[402708803,1768813832053,-151.0,0.00016526,2]
[402708804,1768813832062,-151.0,0.00016526,2]
[402708805,1768813832073,-505.0,0.00016548,2]
[402708806,1768813832082,-1654.8366834,0.00016559,2]
[402708807,1768813832092,-500.0,0.00016661,2]
[402708808,1768813832102,-578.20924308,0.00016666,2]
[402708809,1768813832112,-151.0,0.00016666,2]
[402708810,1768813832122,-1999.0,0.00016666,2]
[402708811,1768813832134,-965.52571517,0.00016666,2]
[402708812,1768813832144,-174.61919141,0.00016666,2]
[402708813,1768813832154,-322.6107,0.00016666,2]
[402708814,1768813832164,-574.12855637,0.00016666,2]
[402708815,1768813832175,-620.0,0.00016666,2]
[402708816,1768813832184,-1654.8366834,0.0001667,2]
[402708817,1768813832194,-919.03361248,0.00016697,2]
[402708818,1768813832208,-166.35,0.00016712,2]
[402708819,1768813832217,-189.0,0.00016712,2]
[402708820,1768813832227,-500.0,0.00016717,2]
[402708821,1768813832236,-226.14,0.00016753,2]
[402708822,1768813832246,-1654.8366834,0.00016782,2]
[402708823,1768813832255,-1654.8366834,0.00016894,2]
[402708824,1768813832265,-479.69263015,0.00016938,2]
[402708825,1768813832278,-439.34098233,0.00016938,2]
[402708826,1768813832288,-500.0,0.00016991,2]
[402708827,1768813832297,-1074.88818825,0.00016999,2]
[402708828,1768813832306,-1000.0,0.00017,17]
[402708829,1768813832316,-1654.8366834,0.00017006,2]
[402708830,1768813832325,-0.83179569,0.000171,2]
[402708831,1768813832337,-149.16820431,0.000171,2]
[402708832,1768813832346,-150.0,0.000171,2]
[402708833,1768813832356,-1099.82139408,0.00017117,2]
[402708834,1768813832368,-501.01040161,0.00017117,2]
[402708835,1768813832384,-54.00488771,0.00017117,2]
[402708836,1768813832393,-500.0,0.00017122,2]
[402708837,1768813832403,-690.89684136,0.0001717,2]
[402708838,1768813832412,-919.03361248,0.00017178,2]
[402708839,1768813832422,-9051.38359353,0.00017212,2]
[402708840,1768813832433,-322.59321388,0.00017212,2]
[402708841,1768813832444,-1028.25764269,0.00017212,2]
[402708842,1768813832459,-3334.76220405,0.00017212,2]
[402708843,1768813832471,-1377.69079332,0.00017212,2]
[402708844,1768813832482,-3140.35799868,0.00017212,2]
[402708845,1768813832502,-260.03248731,0.00017212,2]
[402708846,1768813832513,-1957.15258626,0.00017212,2]
[402708849,1768813837570,-542.46609112,0.00017212,2]
[402708850,1768813837623,-3310.74048639,0.00017212,2]
[402708851,1768813837633,-181.08010149,0.00017214,2]
[402708852,1768813837644,-595.37131296,0.00017214,2]
[402708853,1768813837653,-1654.8366834,0.00017229,2]
[402708854,1768813837662,-1000.0,0.0001726,2]
[402708855,1768813837672,-500.0,0.00017265,2]
[402708856,1768813837682,-265.0,0.00017265,2]
[402708857,1768813837691,-420.0,0.00017267,2]
[402708858,1768813837701,-499.77567136,0.00017269,2]
[402708859,1768813837710,-229.74162883,0.00017269,2]
[402708860,1768813837720,-500.0,0.00017269,2]
[402708861,1768813837729,-500.0,0.00017269,2]
[402708862,1768813837739,-500.0,0.00017269,2]
[402708863,1768813837749,-195.0,0.0001727,2]
[402708864,1768813837759,-2500.0,0.0001727,2]
[402708865,1768813837768,-250.0,0.0001727,2]
[402708866,1768813837776,-195.0,0.0001727,2]
[402708867,1768813837785,-250.0,0.0001727,2]
[402708868,1768813837793,-250.0,0.00017294,2]
[402708869,1768813837802,-195.0,0.00017309,2]
[402708870,1768813837811,-193.53613534,0.00017309,2]
[402708871,1768813837819,-150.35455506,0.00017309,2]
[402708872,1768813837830,-2500.0,0.00017309,2]
[402708873,1768813837839,-354.0,0.0001734,2]
[402708874,1768813837847,-1654.8366834,0.00017341,2]
[402708875,1768813837859,-1680.0,0.00017353,2]
[402708876,1768813837869,-989.0,0.00017357,2]
[402708877,1768813837880,-919.03361248,0.00017419,2]
[402708878,1768813837889,-155.93391326,0.00017438,2]
[402708881,1768813837898,-200.0,0.00017451,2]
[402708883,1768813837907,-354.0,0.00017496,2]
[402708892,1768813838237,-989.0,0.000175,2]
[402708893,1768813838259,-2000.0,0.000175,2]
[402708894,1768813838271,-1000.0,0.000175,2]
[402708895,1768813838281,-354.0,0.00017524,2]
[402708896,1768813838298,-1000.0,0.00017534,2]
[402708897,1768813838308,-150.0,0.00017535,2]
[402708898,1768813838317,-500.0,0.00017535,2]
[402708899,1768813838326,-150.0,0.00017535,2]
[402708900,1768813838337,-500.0,0.00017539,2]
[402708901,1768813838347,-500.0,0.0001759,2]
[402708902,1768813838356,-491.48929174,0.0001764,2]
[402708903,1768813838366,-500.0,0.00017645,2]
[402708904,1768813838377,-919.03361248,0.00017659,2]
[402708905,1768813838385,-989.0,0.00017661,2]
[402708906,1768813838395,-500.0,0.00017688,2]
[402708907,1768813838405,-500.0,0.00017688,2]
[402708908,1768813838414,-500.0,0.00017699,2]
[402708909,1768813838424,-1000.0,0.00017728,2]
[402708910,1768813838434,-2440.0,0.00017741,2]
[402708911,1768813838444,-4826.0,0.00017741,2]
[402708912,1768813838454,-6562.0,0.00017741,2]
[402708913,1768813838464,-500.0,0.00017754,2]
[402708914,1768813838474,-187.78006525,0.00017762,2]
[402708915,1768813838492,-617.40005154,0.00017762,2]
[402708916,1768813838502,-1000.0,0.00017777,2]
[402708917,1768813838512,-989.0,0.00017792,2]
[402708918,1768813838522,-1164.27196195,0.000178,2]
[402708919,1768813838533,-989.0,0.00017806,2]
[402708920,1768813838542,-157.365,0.00017808,2]
[402708921,1768813838552,-1000.0,0.00017808,2]
[402708922,1768813838561,-537.40958165,0.00017809,2]
[402708923,1768813838577,-2630.992,0.00017809,2]
[402708924,1768813838589,-1164.27196189,0.00017811,2]
[402708925,1768813838599,-1215.94200616,0.00017816,2]
[402708926,1768813838610,-3208.89019234,0.00017816,2]
[402708927,1768813838621,-5660.86266119,0.00017816,2]
[402708928,1768813838631,-8468.31198719,0.00017816,2]
[402708929,1768813838642,-11457.9234,0.00017816,2]
[402708930,1768813838651,-208.26973,0.0001782,2]
[402708931,1768813838661,-208.26973,0.0001782,2]
[402708932,1768813838670,-208.26973,0.0001782,2]
[402708933,1768813838680,-208.26974,0.0001782,2]
[402708934,1768813838690,-208.26974,0.0001782,2]
[402708935,1768813838700,-208.26974,0.0001782,2]
[402708936,1768813838710,-166.61578,0.0001782,2]
[402708937,1768813838720,-166.61579,0.0001782,2]
[402708938,1768813838730,-166.61579,0.0001782,2]
[402708939,1768813838739,-1164.27196189,0.00017822,2]
[402708940,1768813838749,-1000.0,0.00017828,2]
[402708941,1768813838759,-1164.27196189,0.00017833,2]
[402708942,1768813838768,-1164.27196189,0.00017844,2]
[402708943,1768813838778,-989.0,0.00017849,2]
[402708944,1768813838788,-1164.27196189,0.00017856,2]
[402708945,1768813838798,-1164.27196189,0.00017867,2]
[402708946,1768813838808,-1164.27196189,0.00017878,2]
[402708947,1768813838818,-1164.27196189,0.00017889,2]
[402708948,1768813838828,-12714.26314041,0.000179,3]
[402708949,1768813838838,-919.03361248,0.000179,2]
[402708950,1768813838848,-534.54,0.000179,2]
[402708951,1768813838859,-466.4406567,0.000179,2]
[402708952,1768813838870,-466.44065661,0.000179,2]
[402708953,1768813838881,-466.44065661,0.000179,2]
[402708954,1768813838893,-466.44065661,0.000179,2]
[402708955,1768813838904,-400.0,0.000179,2]
[402708956,1768813838914,-400.0,0.000179,2]
[402708957,1768813838924,-400.0,0.000179,2]
[402708958,1768813838936,-400.0,0.000179,2]
[402708959,1768813838946,-400.0,0.000179,2]
[402708960,1768813838957,-400.0,0.000179,2]
[402708961,1768813838968,-400.0,0.000179,2]
[402708962,1768813838978,-400.0,0.000179,2]
[402708963,1768813838989,-400.0,0.000179,2]
[402708964,1768813838999,-466.44065661,0.000179,2]
[402708965,1768813839010,-400.0,0.000179,2]
[402708966,1768813839020,-466.44065661,0.000179,2]
[402708967,1768813839030,-466.44065661,0.000179,2]
[402708968,1768813839041,-466.44065661,0.000179,2]
[402708969,1768813839051,-466.44065661,0.000179,2]
[402708970,1768813839060,-466.44065661,0.000179,2]
[402708971,1768813839070,-466.44065661,0.000179,2]
[402708972,1768813839081,-466.44065661,0.000179,2]
[402708973,1768813839091,-466.44065661,0.000179,2]
[402708974,1768813839101,-466.44065661,0.000179,2]
[402708975,1768813839111,-1164.27196189,0.000179,2]
[402708976,1768813839121,-466.44065661,0.000179,2]
[402708977,1768813839132,-466.44065661,0.000179,2]
[402708978,1768813839146,-466.44065661,0.000179,2]
[402708979,1768813839156,-466.44065661,0.000179,2]
[402708980,1768813839166,-466.44065661,0.000179,2]
[402708981,1768813839176,-466.44065661,0.000179,2]
[402708982,1768813839187,-691.47555325,0.000179,2]
[402708983,1768813839196,-3650.0,0.000179,2]
[402708984,1768813839206,-151.0,0.00017921,2]
[402708985,1768813839217,-1000.0,0.00017931,2]
[402708986,1768813839228,-1000.0,0.00017958,2]
[402708987,1768813839237,-151.0,0.0001796,2]
[402708988,1768813839248,-1000.0,0.0001797,2]
[402708989,1768813839258,-500.0,0.0001797,2]
[402708990,1768813839267,-1000.0,0.0001797,2]
[402708991,1768813839278,-500.0,0.0001797,2]
[402708992,1768813839289,-1000.0,0.0001797,2]
[402708993,1768813839298,-500.0,0.0001797,2]
[402708994,1768813839308,-1000.0,0.0001797,2]
[402708995,1768813839317,-500.0,0.0001797,2]
[402708996,1768813839327,-1204.75173114,0.0001797,2]
[402708997,1768813839336,-902.10147171,0.0001797,2]
[402708998,1768813839347,-150.0,0.00017973,2]
[402708999,1768813839357,-500.0,0.00017973,2]
[402709000,1768813839366,-150.0,0.00017973,2]
[402709001,1768813839376,-150.0,0.00017973,2]
[402709002,1768813839385,-13459.1838969,0.00017982,2]
[402709003,1768813839395,-4926.233724,0.00017982,2]
[402709004,1768813839405,-150.0,0.00017986,2]
[402709005,1768813839415,-150.0,0.00017999,2]
[402709006,1768813839425,-158.54044936,0.00017999,2]
[402709007,1768813839434,-300.0,0.00017999,2]
[402709008,1768813839444,-300.0,0.00017999,2]
[402709009,1768813839454,-300.0,0.00017999,2]
[402709010,1768813839464,-300.0,0.00017999,2]
[402709011,1768813839475,-666.0,0.00017999,2]
[402709012,1768813839484,-170.59978669,0.00017999,2]
[402709013,1768813839494,-208.9511193,0.00017999,2]
[402709014,1768813839503,-212.51080354,0.00017999,2]
[402709015,1768813839512,-500.0,0.00017999,2]
[402709016,1768813839522,-313.32208308,0.00017999,2]
[402709017,1768813839532,-179.19896779,0.00017999,2]
[402709018,1768813839543,-150.0,0.00018,2]
[402709019,1768813839553,-150.0,0.00018,2]
[402709021,1768813839563,-150.0,0.00018,2]
[402709022,1768813839574,-150.0,0.00018,2]
[402709023,1768813839583,-150.0,0.00018,2]
[402709024,1768813839593,-55821.12521458,0.00018,2]
[402709025,1768813839614,-13662.57408871,0.00018,2]
[402709026,1768813839625,-3671.06059036,0.00018,2]
[402709027,1768813840178,-243519.20924313,0.00018,2]
[402709028,1768813840193,-2529.37751036,0.00018,2]
[402709029,1768813840209,-725.91164319,0.00018,2]
[402709030,1768813840221,-2335.93824332,0.00018,2]
[402709031,1768813840232,-1793782.42332246,0.00018,2]
[402709032,1768813840243,-2630158.51194714,0.00018,2]
[402709052,1768813842494,-747.50000002,0.00017453,2]
[402709053,1768813842548,-907.33668338,0.00017453,2]
[402709054,1768813842557,-5811.37609634,0.00018,2]
[402709055,1768813842667,-474.81939894,0.00018,2]
[402709056,1768813842677,-3501.92849186,0.00018,2]
[402709057,1768813842688,-423.85475018,0.00018,2]
[402709065,1768813845361,-566.0,0.00017741,2]
[402709067,1768813845371,-32.44994,0.00017801,2]
[402709069,1768813845567,-118.55006,0.00017801,2]
[402709070,1768813845577,-151.0,0.00017801,2]
[402709071,1768813845586,-4318.75715036,0.00018,2]
[402709072,1768813845626,-1525.85853541,0.00018,2]
[402709073,1768813845638,-9701.1,0.00018,2]
[402709074,1768813845682,-305.41516239,0.00017565,2]
[402709075,1768813845694,-538.9811538,0.00017565,2]
[402709076,1768813845748,-810.44036721,0.00017565,2]
[402709077,1768813845758,-1689.55963279,0.00018,2]
[402709085,1768814061846,-196.48319374,0.000156,2]
[402709087,1768814182238,1000.0,0.000155,2]
[402709088,1768814214332,-51.74230877,0.000156,2]
[402709089,1768814214361,-1200.0,0.00015699,2]
[402709090,1768814214389,-255.0,0.00015699,2]
[402709091,1768814214422,-266.33141922,0.00015699,2]
[402709092,1768814352606,160.57,0.0001327,2]
[402709094,1768814451682,-235.81422747,0.000156,2]
[402709095,1768814451704,-98.59848537,0.000156,2]
[402709096,1768814541503,-148.33729945,0.000156,2]
[402709097,1768814541527,-154.04854912,0.000156,2]
[402709098,1768814544946,-236.08913909,0.000156,2]
[402709099,1768814586217,-166.66,0.00015508,2]
[402709100,1768814586243,-14.40434797,0.000156,2]
[402709101,1768814588734,-9.31996382,0.000156,2]
[402709102,1768814588756,-302.43050987,0.000156,2]
[402709103,1768814590275,-325.95411853,0.000156,2]
[402709104,1768814593834,-200.0,0.000156,2]
[402709105,1768814596917,-161.12,0.000156,2]
[402709106,1768814598356,-181.96285593,0.000156,2]
[402709107,1768814600494,-230.14390311,0.000156,2]
[402709108,1768814606075,-177.13478141,0.000156,2]
[402709109,1768814608669,-269.85609689,0.000156,2]
[402709110,1768814610246,-229.56785902,0.000156,2]
[402709111,1768814614048,-190.62554114,0.000156,2]
[402709112,1768814617731,-309.37445886,0.000156,2]
[402709113,1768814621618,-190.51067263,0.000156,2]
[402709114,1768814623122,-183.665,0.000156,2]
[402709115,1768814649735,1448.0,0.00027397,120]
[402709118,1768814753810,10000.01,0.000133,2]
[402709119,1768814766081,-210.61710261,0.000156,2]
[402709120,1768814766103,-96.56675348,0.000156,2]
[402709121,1768814769695,-200.57604426,0.000156,2]
[402709123,1768814931091,-19.54220226,0.000156,2]
[402709124,1768814931118,-317.24211769,0.000156,2]
[402709125,1768814937818,-280.08459468,0.000156,2]
[402709126,1768814942703,-360.58333979,0.000156,2]
[402709127,1768814946570,-237.52412598,0.000156,2]
[402709128,1768814951584,-303.63356983,0.000156,2]
[402709129,1768814955775,-257.15802416,0.000156,2]
[402709131,1768814958093,-215.70872266,0.000156,2]
[402709134,1768815015002,2000.0,0.000272,120]
[402709142,1768815031599,-34.34460521,0.000156,2]
[402709143,1768815031609,-195.0,0.00015639,2]
[402709144,1768815031618,-364.34099322,0.00015691,2]
[402709145,1768815031654,-135.65900678,0.00015691,2]
[402709146,1768815031663,-300.0,0.00015777,2]
[402709147,1768815031672,-269.23195422,0.00015777,2]
[402709148,1768815031763,-930.38,0.00015777,2]
[402709149,1768815031819,-0.38804578,0.00015777,2]
[402709150,1768815031829,-241.0,0.00015777,2]
[402709151,1768815031839,-300.0,0.00015777,2]
[402709152,1768815031849,-8267.93270544,0.00015778,2]
[402709209,1768815035105,3000.0,0.000273,120]
[402709216,1768815037748,-292.696336,0.00015778,2]
[402709217,1768815037760,-371.78998263,0.00015778,2]
[402709218,1768815037772,-990.98677168,0.00015778,2]
[402709219,1768815037852,-975.13,0.00015778,2]
[402709220,1768815037864,-2891.90617397,0.00015778,2]
[402709221,1768815037873,-166.66,0.00015834,2]
[402709222,1768815037882,-500.0,0.00015973,2]
[402709223,1768815037891,-65.39889789,0.0001615,2]
[402709226,1768815040067,-1.7e-07,0.0001615,2]
[402709227,1768815040078,-1198.60110194,0.0001615,2]
[402709228,1768815040087,-1264.0,0.0001615,2]
[402709229,1768815040096,-1264.0,0.0001615,2]
[402709230,1768815040106,-892.27724741,0.0001615,2]
[402709231,1768815040119,-371.72275259,0.0001615,2]
[402709232,1768815040128,-570.69806023,0.0001615,2]
[402709233,1768815040176,-693.30193977,0.0001615,2]
[402709234,1768815040187,-1264.0,0.0001615,2]
[402709235,1768815040196,-1264.0,0.0001615,2]
[402709236,1768815040206,-1264.0,0.0001615,2]
[402709237,1768815040216,-1264.0,0.0001615,2]
[402709238,1768815040226,-1264.0,0.0001615,2]
[402709239,1768815040236,-1264.0,0.0001615,2]
[402709240,1768815040245,-1264.0,0.0001615,2]
[402709241,1768815040254,-166.66,0.00016161,2]
[402709242,1768815040263,-463.0,0.00016162,2]
[402709243,1768815040274,-150.0,0.000162,2]
[402709244,1768815040283,-150.0,0.000162,2]
[402709245,1768815040294,-150.0,0.000162,2]
[402709246,1768815040303,-258.0,0.0001621,2]
[402709247,1768815040312,-1000.0,0.0001623,2]
[402709248,1768815040322,-268.38322444,0.00016276,2]
[402709249,1768815040332,-518.96,0.00016304,2]
[402709250,1768815040341,-709.0,0.0001635,2]
[402709251,1768815040350,-1600.0,0.00016361,2]
[402709252,1768815040359,-150.0,0.00016378,2]
[402709253,1768815040368,-1747.0,0.00016382,2]
[402709254,1768815040378,-572.87190524,0.00016434,2]
[402709255,1768815040387,-594.12809476,0.00016465,2]
[402709256,1768815040396,-166.66,0.00016487,2]
[402709257,1768815040406,-500.0,0.00016521,2]
[402709258,1768815040417,-500.0,0.00016522,2]
[402709259,1768815040427,-270.43214098,0.00016522,2]
[402709260,1768815040437,-3952.28,0.00016523,2]
[402709261,1768815040447,-152.0,0.00016591,2]
[402709262,1768815040456,-1459.26,0.00016591,2]
[402709263,1768815040467,-151.0,0.00016623,2]
[402709264,1768815040476,-151.0,0.00016623,2]
[402709265,1768815040485,-151.0,0.00016623,2]
[402709266,1768815040494,-151.0,0.00016623,2]
[402709267,1768815040504,-175.1,0.0001674,2]
[402709268,1768815040513,-180.91,0.00016767,2]
[402709269,1768815040522,-166.66,0.00016814,2]
[402709270,1768815040531,-166.66,0.00016882,2]
[402709271,1768815040540,-250.0,0.00017,2]
[402709272,1768815040549,-174.61919141,0.00017099,2]
[402709273,1768815040558,-863.16100166,0.00017099,2]
[402709274,1768815040567,-1999.0,0.00017099,2]
[402709275,1768815040577,-721.12765535,0.00017099,2]
[402709276,1768815040586,-322.6107,0.00017099,2]
[402709277,1768815040595,-578.20924308,0.00017099,2]
[402709278,1768815040605,-1000.0,0.00017099,2]
[402709279,1768815040614,-574.12855637,0.00017099,2]
[402709280,1768815040623,-1000.0,0.00017099,2]
[402709281,1768815040632,-1000.0,0.00017099,2]
[402709282,1768815040641,-1000.0,0.00017099,2]
[402709283,1768815040650,-500.0,0.00017099,2]
[402709284,1768815040660,-500.0,0.00017099,2]
[402709285,1768815040669,-500.0,0.00017099,2]
[402709286,1768815040678,-500.0,0.00017099,2]
[402709287,1768815040687,-500.0,0.00017099,2]
[402709288,1768815040696,-500.0,0.00017099,2]
[402709289,1768815040705,-500.0,0.00017099,2]
[402709290,1768815040714,-500.0,0.00017099,2]
[402709291,1768815040723,-500.0,0.00017099,2]
[402709292,1768815040736,-500.0,0.00017099,2]
[402709293,1768815040745,-500.0,0.00017099,2]
[402709294,1768815040754,-500.0,0.00017099,2]
[402709295,1768815040763,-500.0,0.00017099,2]
[402709296,1768815040773,-500.0,0.00017099,2]
[402709297,1768815040783,-13790.44196972,0.00017117,2]
[402709298,1768815040792,-518.96,0.0001712,2]
[402709299,1768815040800,-166.66,0.0001714,2]
[402709300,1768815040809,-168.0,0.00017144,2]
[402709301,1768815040818,-600.0,0.0001716,2]
[402709302,1768815040827,-300.0,0.0001716,2]
[402709303,1768815040836,-195.0,0.0001716,2]
[402709304,1768815040845,-600.0,0.0001716,2]
[402709305,1768815040854,-195.0,0.0001716,2]
[402709306,1768815040863,-250.0,0.0001716,2]
[402709307,1768815040872,-329.20581098,0.0001716,2]
[402709308,1768815040881,-168.0,0.00017233,2]
[402709309,1768815040890,-420.0,0.00017253,2]
[402709310,1768815040900,-1000.0,0.0001726,2]
[402709311,1768815040909,-168.0,0.000173,2]
[402709312,1768815040918,-1680.0,0.0001734,2]
[402709313,1768815040929,-1711.3787295,0.00017343,2]
[402709314,1768815040939,-168.0,0.00017348,2]
[402709315,1768815040949,-168.0,0.00017409,2]
[402709316,1768815040959,-155.93391326,0.0001741,2]
[402709317,1768815040969,-3240.0,0.00017454,2]
[402709318,1768815040978,-235.9,0.00017454,2]
[402709319,1768815040987,-2000.0,0.000175,2]
[402709320,1768815040996,-235.9,0.000175,2]
[402709321,1768815041007,-175.00079983,0.00017534,2]
[402709322,1768815041019,-824.99920017,0.00017534,2]
[402709323,1768815041031,-235.9,0.00017546,2]
[402709324,1768815041041,-166.66,0.00017579,2]
[402709325,1768815041051,-502.0,0.00017589,2]
[402709326,1768815041061,-168.0,0.00017592,2]
[402709327,1768815041071,-235.9,0.00017592,2]
[402709328,1768815041080,-168.0,0.00017606,2]
[402709329,1768815041088,-235.9,0.00017638,2]
[402709330,1768815041097,-245.74464587,0.0001764,2]
[402709331,1768815041107,-154.51930014,0.00017647,2]
[402709332,1768815041116,-595.37131296,0.00017647,2]
[402709333,1768815041125,-200.0,0.00017651,2]
[402709334,1768815041134,-168.0,0.00017668,2]
[402709335,1768815041143,-175.1,0.0001767,2]
[402709336,1768815041152,-235.9,0.00017684,2]
[402709337,1768815041161,-500.0,0.00017699,2]
[402709338,1768815041170,-150.0,0.00017699,2]
[402709339,1768815041179,-150.0,0.00017699,2]
[402709340,1768815041188,-150.0,0.00017699,2]
[402709341,1768815041197,-150.0,0.00017699,2]
[402709342,1768815041208,-235.9,0.0001773,2]
[402709343,1768815041218,-500.0,0.00017754,2]
[402709344,1768815041227,-150.0,0.00017754,2]
[402709345,1768815041238,-243.46151941,0.00017754,2]
[402709346,1768815041248,-150.0,0.00017754,2]
[402709347,1768815041256,-235.9,0.00017776,2]
[402709348,1768815041266,-168.0,0.0001779,2]
[402709349,1768815041275,-1000.0,0.00017808,2]
[402709350,1768815041284,-500.0,0.00017809,2]
[402709351,1768815041293,-150.0,0.00017809,2]
[402709352,1768815041303,-150.0,0.00017809,2]
[402709353,1768815041312,-2104.794,0.00017816,2]
[402709354,1768815041323,-157.365,0.00017816,2]
[402709355,1768815041332,-168.0,0.00017817,2]
[402709356,1768815041342,-235.9,0.00017822,2]
[402709357,1768815041351,-500.0,0.00017863,2]
[402709358,1768815041362,-201.08039369,0.00017863,2]
[402709359,1768815041372,-150.0,0.00017863,2]
[402709360,1768815041381,-235.9,0.00017868,2]
[402709361,1768815041390,-168.0,0.00017871,2]
[402709362,1768815041400,-379.25602905,0.00017879,2]
[402709363,1768815041409,-669.05258989,0.00017879,2]
[402709364,1768815041419,-1000.86266107,0.00017879,2]
[402709365,1768815041429,-1354.2012,0.00017879,2]
[402709366,1768815041438,-172.74205032,0.000179,2]
[402709367,1768815041448,-2222.42206257,0.000179,2]
[402709368,1768815041457,-1909.81990584,0.000179,2]
[402709369,1768815041477,-652.47824196,0.000179,2]